bitfinex-derivatives/quotes_ETHF0:USTF0_20250923
["timestamp","ask_amount","ask_price","bid_price","bid_amount"]
[1758593434453,3.2078,4180.4,4180.3,4.97328695]
[1758593435347,0.43016,4180.8,4180.3,4.97328695]
[1758593435348,0.218,4180.5,4180.4,0.3141]
[1758593435553,0.53,4180.5,4180.4,0.9912]
[1758593436258,0.7345,4180.5,4180.4,0.9912]
[1758593437155,0.8622,4180.5,4180.4,0.244]
[1758593438254,0.8622,4180.5,4180.0,0.2146]
[1758593438255,0.85272,4180.1,4180.0,0.2146]
[1758593438558,7.3355,4180.5,4179.8,3.98208695]
[1758593438559,0.4225,4179.9,4179.8,4.19668695]
[1758593438753,0.4225,4179.9,4179.8,4.44068695]
[1758593438961,0.7345,4179.9,4179.8,4.44068695]
[1758593439558,0.7345,4179.9,4179.8,4.97328695]
[1758593439962,0.7345,4179.9,4179.8,4.41518695]
[1758593440258,0.7345,4179.9,4179.8,4.65918695]
[1758593440657,0.74225,4179.8,4179.7,40.8]
[1758593441162,0.74225,4179.8,4179.1,4.29618695]
[1758593441163,0.7345,4179.2,4179.1,4.72928695]
[1758593441348,0.7345,4179.2,4179.1,4.97328695]
[1758593441555,0.7345,4179.2,4179.1,45.77328695]
[1758593441750,0.7345,4179.2,4179.1,45.52928695]
[1758593442051,0.218,4179.2,4179.1,45.77328695]
[1758593442257,0.43660378,4179.2,4179.1,45.77328695]
[1758593442454,0.74860378,4179.2,4179.1,45.77328695]
[1758593442957,0.74860378,4179.2,4179.1,45.21518695]
[1758593443162,0.74860378,4179.2,4179.1,45.45918695]
[1758593443760,0.74860378,4179.2,4179.1,44.78208695]
[1758593443967,1.16486,4178.8,4178.7,0.2146]
[1758593444159,0.21860378,4178.8,4178.7,0.9912]
[1758593444462,0.21860378,4178.8,4178.7,41.4771]
[1758593444661,0.74860378,4178.8,4178.7,41.4771]
[1758593445058,0.74860378,4178.8,4178.7,41.7912]
[1758593445365,0.74860378,4178.8,4178.7,0.6771]
[1758593445366,0.95310378,4178.8,4178.7,0.6771]
[1758593445765,0.95310378,4178.8,4178.7,41.7912]
[1758593447961,0.21860378,4178.8,4178.7,41.7912]
[1758593449364,0.53060378,4178.8,4178.7,41.7912]
[1758593450361,1.16491,4178.3,4178.2,0.2146]
[1758593450562,1.38373619,4178.3,4178.2,0.2146]
[1758593450758,1.38373619,4178.3,4178.2,0.4586]
[1758593451162,1.38373619,4178.3,4178.2,0.6771]
[1758593451358,1.38373619,4178.3,4178.2,0.9912]
[1758593451961,1.38373619,4178.3,4178.2,0.7472]
[1758593452157,1.38373619,4178.3,4178.2,0.9912]
[1758593452357,0.95332619,4178.3,4178.2,0.9912]
[1758593452569,0.43038,4178.6,4178.5,0.5632]
[1758593452863,0.64925852,4178.6,4178.5,5.10338695]
[1758593453066,0.86725852,4178.6,4178.5,5.10338695]
[1758593453567,1.17925852,4178.6,4178.5,5.10338695]
[1758593454861,1.38375852,4178.6,4178.5,0.6771]
[1758593455264,1.38375852,4178.6,4178.5,0.9912]
[1758593455864,1.38385644,4178.6,4178.5,0.9912]
[1758593459270,1.16488,4178.6,4178.5,0.9912]
[1758593459960,0.96038,4178.6,4178.5,0.9912]
[1758593460167,1.16488,4178.6,4178.5,0.9912]
[1758593461966,3.63814,4179.0,4178.7,0.4267]
[1758593462172,0.5214,4179.5,4179.4,0.7369]
[1758593462365,3.2078,4179.8,4179.7,0.7369]
[1758593462674,3.7292,4179.8,4179.7,0.9809]
[1758593463966,3.941,4179.8,4179.7,0.9809]
[1758593464267,3.941,4179.8,4179.7,0.6707]
[1758593464475,3.941,4179.8,4179.7,0.9809]
[1758593464668,3.2078,4179.8,4179.7,0.9809]
[1758593464868,0.43022,4180.2,4179.7,0.9809]
[1758593465072,0.2184,4179.9,4179.7,0.244]
[1758593465272,0.5214,4179.9,4179.8,0.7369]
[1758593466670,0.7332,4179.9,4179.8,0.7369]
[1758593467373,3.5108,4180.4,4180.0,0.43023]
[1758593467578,3.2078,4180.4,4180.3,4.71898695]
[1758593467876,3.2078,4180.4,4180.3,4.96298695]
[1758593468068,3.42230943,4180.4,4180.3,4.96298695]
[1758593468269,3.4262,4180.4,4180.3,4.96298695]
[1758593469365,0.2184,4180.4,4180.3,4.96298695]
[1758593469567,0.7332,4180.4,4180.3,4.96298695]
[1758593470170,0.7332,4180.4,4180.3,4.65278695]
[1758593470470,0.4302,4180.3,4180.2,40.8]
[1758593470670,0.4302,4180.3,4180.2,41.3542]
[1758593470671,0.94758441,4180.3,4180.2,41.3542]
[1758593470878,0.4302,4180.3,4180.2,41.3542]
[1758593471078,0.7332,4180.3,4180.2,41.044]
[1758593472174,0.7332,4180.3,4180.2,41.3542]
[1758593472380,0.4302,4180.4,4180.3,0.4267]
[1758593472588,0.6486,4180.4,4180.3,0.9809]
[1758593473190,0.9516,4180.4,4180.3,0.9809]
[1758593474886,3.2078,4180.5,4180.4,0.3102]
[1758593475092,3.2078,4180.5,4180.4,4.71898695]
[1758593475684,3.85638,4180.5,4180.4,4.71898695]
[1758593475885,4.49938,4180.5,4180.4,0.4592]
[1758593476088,0.7332,4180.3,4180.2,40.8]
[1758593476293,0.7332,4180.3,4180.2,41.044]
[1758593476692,0.9625,4180.4,4180.3,0.7543]
[1758593476887,1.1682,4180.4,4180.3,0.7543]
[1758593477087,1.1682,4180.4,4180.3,0.4223]
[1758593477699,1.1682,4180.4,4180.3,0.7543]
[1758593477999,0.4302,4180.4,4180.3,0.7543]
[1758593478188,0.3085,4180.8,4180.5,0.1264]
[1758593478392,0.43015,4180.8,4180.7,0.7543]
[1758593479493,1.16815,4180.8,4180.7,0.7543]
[1758593481100,3.336,4181.5,4180.7,0.7543]
[1758593481101,0.43014,4180.9,4180.7,0.7543]
[1758593481293,0.43014,4180.9,4180.8,0.9983]
[1758593482099,0.96244,4180.9,4180.8,0.9983]
[1758593482801,0.43014,4180.9,4180.8,0.9983]
[1758593483602,0.65394,4180.9,4180.8,0.9983]
[1758593483992,0.73862,4181.1,4180.9,0.332]
[1758593484198,0.43012,4181.1,4181.0,1.1247]
[1758593484394,3.336,4181.5,4181.4,0.2044]
[1758593484595,4.71826713,4181.5,4181.4,0.9983]
[1758593485297,4.50408,4181.5,4181.4,0.6663]
[1758593485500,4.50408,4181.5,4181.4,5.5141568]
[1758593485501,3.2078,4181.5,4181.4,5.5141568]
[1758593485999,0.65385,4181.8,4181.7,0.7543]
[1758593486196,0.65385,4181.8,4181.7,0.9983]
[1758593486792,0.96235,4181.8,4181.7,0.9983]
[1758593486993,1.16805,4181.8,4181.7,0.9983]
[1758593489100,1.3825323,4181.8,4181.7,0.9983]
[1758593489602,1.38250355,4181.8,4181.7,0.9983]
[1758593489806,0.86830355,4181.8,4181.7,0.9983]
[1758593490005,0.65385,4181.8,4181.7,0.9983]
[1758593490201,0.2238,4181.8,4181.7,0.9983]
[1758593491099,0.95872,4182.1,4182.0,0.4172]
[1758593491291,1.17310184,4182.1,4182.0,0.9695]
[1758593491709,1.38570184,4182.1,4182.0,0.9695]
[1758593493609,1.38590638,4182.1,4182.0,0.9695]
[1758593496506,0.55468,4181.5,4181.4,40.8]
[1758593496708,1.32088,4181.5,4181.4,0.244]
[1758593496910,0.98372,4181.1,4181.0,0.2094]
[1758593497215,1.19632,4181.1,4181.0,0.4534]
[1758593497906,1.19632,4181.1,4181.0,0.9695]
[1758593499512,0.7662,4181.1,4181.0,0.9695]
[1758593503909,0.1246,4181.5,4181.0,0.9695]
[1758593503910,0.1246,4181.5,4181.0,5.6136568]
[1758593504116,0.5536,4182.0,4181.9,0.7255]
[1758593504315,0.76802191,4182.0,4181.9,0.9695]
[1758593504519,0.76802191,4182.0,4181.9,41.7695]
[1758593505113,0.89262191,4182.0,4181.9,41.4612]
[1758593505708,0.89262191,4182.0,4181.9,41.7695]
[1758593506414,0.89262191,4182.0,4181.9,41.4612]
[1758593506913,0.89262191,4182.0,4181.9,41.2534]
[1758593507517,0.76802191,4182.0,4181.9,41.5617]
[1758593507816,0.21442191,4182.0,4181.9,41.5617]
[1758593508614,0.42997,4182.6,4181.9,41.5617]
[1758593508615,0.98357,4182.6,4182.5,0.7255]
[1758593508913,1.1981386,4182.6,4182.5,0.9695]
[1758593509115,1.4107386,4182.6,4182.5,0.9695]
[1758593510310,0.4347686,4182.6,4182.5,1.0978]
[1758593510509,0.7681686,4182.6,4182.5,0.9695]
[1758593511014,0.2145686,4182.6,4182.5,1.0978]
[1758593511211,3.63771,4183.2,4182.5,1.0978]
[1758593511409,3.63771,4183.2,4182.7,1.15544]
[1758593511410,0.2145271,4182.8,4182.7,1.15544]
[1758593511611,0.2145271,4182.8,4182.7,1.39944]
[1758593512406,0.2145271,4182.8,4182.7,42.19944]
[1758593513117,0.2145271,4182.8,4182.7,41.7695]
[1758593513318,0.5479271,4182.8,4182.7,41.7695]
[1758593513518,0.9778671,4182.8,4182.7,41.7695]
[1758593513906,0.2145271,4182.8,4182.7,41.7695]
[1758593514213,0.022,4182.9,4182.8,1.15544]
[1758593516015,3.2078,4183.2,4183.1,0.42991]
[1758593516218,3.97101,4184.2,4183.6,0.4172]
[1758593516419,4.40381,4184.2,4184.1,0.2094]
[1758593516620,4.40381,4184.2,4184.1,0.9695]
[1758593517222,0.7662,4184.2,4184.1,0.9695]
[1758593519716,0.7662,4184.2,4184.1,0.244]
[1758593519917,0.7662,4183.4,4183.3,3.4172]
[1758593520117,0.7662,4183.4,4183.3,3.6612]
[1758593520825,0.7662,4183.4,4183.3,0.244]
[1758593521019,1.16801,4183.1,4183.0,0.213]
[1758593521232,0.5163,4183.4,4183.3,0.7463]
[1758593521419,0.5163,4183.4,4183.3,0.9903]
[1758593521816,0.7381,4183.4,4183.3,0.457]
[1758593522617,0.7381,4183.4,4183.3,0.9903]
[1758593522919,0.2072,4183.4,4183.3,0.9903]
[1758593523521,0.7381,4183.4,4183.3,0.244]
[1758593523821,0.96770032,4183.4,4183.0,4.5158568]
[1758593524031,0.7381,4183.2,4183.1,0.9903]
[1758593524526,0.98342353,4183.2,4183.1,0.9903]
[1758593525122,0.98342353,4183.2,4183.1,0.457]
[1758593525523,0.98342353,4183.2,4183.1,0.9903]
[1758593525725,0.7381,4183.2,4183.1,0.9903]
[1758593529318,0.98361122,4183.2,4183.1,0.9903]
[1758593529518,0.98361122,4183.2,4183.1,0.457]
[1758593529824,0.98361122,4183.2,4183.1,0.244]
[1758593530024,0.98361122,4183.2,4183.1,0.9903]
[1758593533622,0.76181122,4183.2,4183.1,0.9903]
[1758593533821,0.24551122,4183.2,4183.1,0.9903]
[1758593534235,0.76181122,4183.2,4183.1,0.9903]
[1758593534930,0.98361122,4183.2,4183.1,0.9903]
[1758593535528,0.98361122,4183.2,4182.7,40.8]
[1758593535825,0.42995,4182.7,4182.4,0.19272626]
[1758593536032,0.8886,4182.5,4182.4,0.40572626]
[1758593536250,1.13411122,4182.5,4182.4,0.457]
[1758593536930,1.13411122,4182.5,4182.4,0.213]
[1758593537136,1.13411122,4182.5,4182.4,0.457]
[1758593539034,1.13411122,4182.5,4182.4,0.244]
[1758593539226,0.8527,4182.3,4181.7,0.73765]
[1758593539422,0.7567,4181.8,4181.7,1.14585]
[1758593539622,1.00221122,4181.8,4181.7,1.38985]
[1758593539836,1.00221122,4181.8,4181.7,41.7598]
[1758593540933,1.00221122,4181.8,4181.4,0.43008]
[1758593541139,0.7567,4181.4,4181.3,0.7158]
[1758593541436,1.00221122,4181.4,4181.3,0.9598]
[1758593541829,1.00221122,4181.4,4181.3,0.4082]
[1758593542133,1.00221122,4181.4,4181.3,0.244]
[1758593542330,1.00244143,4181.4,4181.3,0.244]
[1758593545041,1.00206083,4181.4,4181.3,0.244]
[1758593545542,0.4227,4180.6,4180.5,4.61008402]
[1758593545743,0.7567,4180.6,4180.5,4.85408402]
[1758593545934,0.7567,4180.6,4180.5,5.36588402]
[1758593549150,0.7567,4180.6,4180.5,4.42390402]
[1758593549347,0.4227,4180.3,4180.2,0.204]
[1758593549644,0.123,4180.5,4180.2,0.204]
[1758593549645,0.2196,4180.5,4180.4,0.83839]
[1758593549852,0.2196,4180.5,4180.4,0.9598]
[1758593550048,0.5536,4180.5,4180.4,0.9598]
[1758593550543,0.7567,4180.5,4180.4,0.9598]
[1758593550739,0.3279,4180.4,4179.9,0.74374]
[1758593550943,0.7709,4180.0,4179.9,1.16934]
[1758593551144,0.551,4180.0,4179.9,1.41334]
[1758593551346,0.551,4180.3,4180.2,0.7391]
[1758593551642,0.7709,4180.3,4180.2,0.9831]
[1758593551847,0.7709,4180.3,4180.2,0.6696]
[1758593552655,0.7709,4180.3,4180.2,1.82251065]
[1758593555353,0.7709,4180.3,4180.2,2.13601065]
[1758593559255,1.01554764,4180.3,4180.2,1.39691065]
[1758593559453,1.01554764,4180.3,4180.2,0.244]
[1758593559758,1.20116,4179.7,4179.6,3.4218]
[1758593559955,0.7709,4179.7,4179.6,4.1909]
[1758593562954,1.01570338,4179.7,4179.6,4.1909]
[1758593564562,1.01570338,4179.7,4179.6,0.9831]
[1758593566853,1.01570338,4179.7,4179.6,0.6696]
[1758593567660,1.01570338,4179.7,4179.6,0.9831]
[1758593571271,1.01570338,4179.7,4179.6,0.458]
[1758593572464,0.7709,4179.0,4178.9,1.89201065]
[1758593572665,1.01570338,4179.0,4178.9,2.13601065]
[1758593573663,0.24480338,4179.0,4178.9,7.5282113]
[1758593573861,0.24480338,4179.0,4178.9,7.2889213]
[1758593574661,0.24605437,4179.0,4178.9,6.5498213]
[1758593574862,0.24605437,4179.0,4178.9,7.4057613]
[1758593575368,0.24605437,4179.0,4178.9,7.7192613]
[1758593579068,0.24605437,4179.0,4178.9,6.56635065]
[1758593579868,0.79705437,4179.0,4178.9,2.56635065]
[1758593580170,0.24605437,4179.0,4178.9,2.56635065]
[1758593582370,1.00695437,4179.0,4178.9,0.9831]
[1758593582574,1.13505437,4179.0,4178.9,1.82251065]
[1758593582975,1.13505437,4179.0,4178.9,2.12581065]
[1758593583178,1.13505437,4179.0,4178.9,1.61091065]
[1758593583470,0.2215,4178.6,4178.5,3.7352]
[1758593583676,1.00695437,4178.6,4178.5,2.13051065]
[1758593584175,0.24605437,4178.6,4178.5,5.46201065]
[1758593585873,0.78385437,4178.6,4178.5,5.46201065]
[1758593586073,0.24605437,4178.6,4178.5,5.46201065]
[1758593586974,1.00695437,4178.6,4178.5,1.88651065]
[1758593587277,1.00695437,4178.6,4178.5,2.13051065]
[1758593587976,0.78385437,4178.6,4178.5,2.25421065]
[1758593589874,0.78279675,4178.6,4178.5,2.25421065]
[1758593590376,0.78279675,4178.6,4178.5,2.13051065]
[1758593593968,0.5378,4178.6,4178.5,2.13051065]
[1758593594268,0.7825347,4178.6,4178.5,2.13051065]
[1758593595775,3.414,4179.5,4179.4,0.43029]
[1758593595975,3.414,4179.5,4179.4,2.57650065]
[1758593595976,3.45256477,4179.5,4179.4,2.57650065]
[1758593596283,3.45256477,4179.5,4179.4,43.37650065]
[1758593597173,0.24476477,4179.5,4179.4,43.37650065]
[1758593597372,3.63797,4180.6,4180.2,0.4302]
[1758593597573,4.06297,4180.6,4180.5,1.57841065]
[1758593597779,4.06297,4180.6,4180.5,1.90221065]
[1758593598076,4.63697,4180.6,4180.5,1.90221065]
[1758593598774,4.39777,4180.6,4180.5,1.90221065]
[1758593599483,4.39777,4180.6,4180.5,1.37401065]
[1758593599776,0.7598,4180.4,4180.3,0.244]
[1758593601071,0.2062,4179.8,4179.7,0.75406]
[1758593601375,0.7598,4179.8,4179.7,1.21916]
[1758593603075,0.7598,4179.8,4179.7,0.5449]
[1758593603276,0.7598,4179.8,4179.2,41.2303]
[1758593603277,0.7598,4179.3,4179.2,0.3238]
[1758593603482,0.7598,4179.3,4179.2,0.244]
[1758593606282,0.7598,4179.3,4178.8,1.33495397]
[1758593606283,1.33495397,4179.3,4178.5,0.87788]
[1758593606481,0.7598,4178.6,4178.5,0.873]
[1758593606777,0.7598,4178.6,4178.5,1.117]
[1758593607776,0.7598,4178.6,4178.5,0.244]
[1758593607983,1.00097082,4178.6,4178.5,0.244]
[1758593608178,0.7598,4178.3,4178.2,0.3238]
[1758593608379,1.00097082,4178.3,4178.2,0.5678]
[1758593608575,1.00097082,4178.3,4178.2,0.7889]
[1758593608971,0.72780345,4755.0,4178.2,0.7889]
[1758593609176,3.2078,4178.9,4178.6,0.3238]
[1758593609478,0.43035,4178.8,4178.6,0.3238]
[1758593609679,0.43037,4178.6,4178.5,0.1313]
[1758593609877,0.43037,4178.6,4178.5,0.3524]
[1758593610373,0.43037,4178.6,4178.5,0.6762]
[1758593610574,0.43037,4178.6,4178.5,0.4551]
[1758593610779,0.43037,4178.6,4178.5,0.6589]
[1758593616386,0.43037,4178.6,4178.5,0.8755]
[1758593617486,0.43037,4178.7,4178.6,0.594]
[1758593617686,0.43037,4178.7,4178.6,0.8106]
[1758593620985,0.23521971,4178.7,4178.6,0.8106]
[1758593623585,0.23521971,4178.7,4178.6,2.14555397]
[1758593623787,3.2078,4179.4,4179.3,0.8106]
[1758593629192,3.2078,4179.4,4179.3,0.8106]
[1758593632903,3.2078,4179.4,4179.3,0.3902]
[1758593633104,3.80148755,4179.4,4179.3,0.3902]
[1758593633497,3.80148755,4179.4,4179.3,0.8106]
[1758593633703,3.2078,4179.4,4179.3,0.8106]
[1758593635105,0.43027,4179.7,4179.6,0.8106]
[1758593635911,0.66326586,4179.7,4179.6,0.8106]
[1758593638511,0.23299586,4179.7,4179.6,0.8106]
[1758593639515,0.43025,4179.8,4179.6,0.8106]
[1758593639706,0.2328597,4179.7,4179.6,0.8106]
[1758593641505,0.23281507,4179.7,4179.6,0.4204]
[1758593641711,0.23281507,4179.7,4179.6,0.8158]
[1758593642619,0.23281507,4179.7,4179.6,0.3954]
[1758593643015,0.47681507,4179.7,4179.6,0.3954]
[1758593645013,0.47681507,4179.7,4179.6,0.9403]
[1758593645214,0.47681507,4179.7,4179.6,0.3954]
[1758593645615,0.47681507,4179.7,4179.6,0.6685]
[1758593646516,0.23281507,4179.7,4179.6,0.9403]
[1758593646722,0.47681507,4179.7,4179.6,0.9403]
[1758593648419,0.47681507,4179.7,4179.6,0.3954]
[1758593649417,0.23281507,4179.7,4179.6,0.3954]
[1758593649929,0.47681507,4179.7,4179.6,0.3954]
[1758593651527,0.43027,4179.6,4179.5,0.1649]
[1758593651828,1.99803904,4179.6,4179.5,0.1649]
[1758593652223,0.80532,4179.1,4179.0,0.438]
[1758593652530,0.70257,4178.6,4178.5,0.6762]
[1758593652727,0.93538507,4178.6,4178.5,0.6762]
[1758593653629,0.93538507,4178.6,4178.5,1.0716]
[1758593656027,0.66318507,4178.6,4178.5,1.0716]
[1758593661929,0.66221174,4178.6,4178.5,1.0716]
[1758593662836,1.20051174,4178.6,4178.5,1.0716]
[1758593663631,0.66221174,4178.6,4178.5,1.0716]
[1758593666336,0.23184174,4178.6,4178.5,1.0716]
[1758593666536,0.23184174,4178.6,4178.5,2.22547863]
[1758593668536,0.23189864,4178.6,4178.5,1.83007863]
[1758593669240,0.23189864,4178.6,4178.5,2.23987863]
[1758593671039,0.43031,4179.3,4179.2,0.55]
[1758593671246,0.43031,4179.3,4179.2,0.9337]
[1758593671744,0.70501,4179.3,4179.2,0.9337]
[1758593671937,1.39001,4179.3,4179.2,0.3837]
[1758593672138,0.97811,4179.3,4179.2,0.9337]
[1758593672344,0.70501,4179.3,4179.2,0.9337]
[1758593673642,0.43031,4179.3,4179.2,0.9337]
[1758593674739,1.39001,4179.3,4179.2,0.9337]
[1758593675945,1.39001,4179.3,4179.2,0.6564]
[1758593676145,1.39001,4179.3,4179.2,0.3837]
[1758593676341,1.39001,4179.3,4179.2,0.6564]
[1758593678246,1.98411294,4179.3,4179.2,0.6564]
[1758593678549,0.9597,4179.1,4178.8,0.244]
[1758593678746,0.9597,4178.9,4178.8,0.6564]
[1758593679642,1.39007,4178.6,4178.5,0.2727]
[1758593679843,0.97821,4178.3,4178.2,0.55]
[1758593680242,0.97821,4178.3,4178.2,0.9337]
[1758593683160,1.19780911,4178.3,4178.2,0.9337]
[1758593684354,0.21959911,4178.3,4178.2,2.08757863]
[1758593684856,0.43034,4179.0,4178.9,0.55]
[1758593685057,0.43034,4179.0,4178.9,2.08757863]
[1758593687254,0.4119,4179.3,4179.0,0.1585]
[1758593687255,0.43031,4179.2,4179.0,0.1585]
[1758593687457,0.43031,4179.2,4179.1,0.9337]
[1758593689251,0.70501,4179.2,4179.1,0.9337]
[1758593689449,1.11691,4179.2,4179.1,0.9337]
[1758593691552,1.39001,4179.2,4179.1,0.9337]
[1758593692961,1.39001,4179.2,4179.1,0.6564]
[1758593693164,1.39001,4179.2,4179.1,0.9337]
[1758593694758,1.39001,4179.2,4179.1,0.2727]
[1758593694951,0.97813,4179.0,4178.9,0.6564]
[1758593695151,0.6866,4179.0,4178.9,0.9337]
[1758593695453,0.43033,4179.1,4178.9,0.9337]
[1758593695654,1.39003,4179.1,4179.0,1.0922]
[1758593696962,1.60666596,4179.1,4179.0,1.0922]
[1758593697461,1.60666596,4179.1,4179.0,0.9337]
[1758593701363,0.96124,4178.9,4178.8,0.496]
[1758593701568,1.58517596,4178.9,4178.8,1.1274]
[1758593707064,1.15483596,4178.9,4178.8,1.1274]
[1758593707272,1.15483596,4178.9,4178.8,5.36669999]
[1758593707273,0.21663596,4178.9,4178.8,5.36669999]
[1758593707568,3.2078,4179.6,4179.5,1.0466]
[1758593707765,3.4764,4179.6,4179.5,2.44347863]
[1758593707961,4.146,4179.6,4179.5,1.1264]
[1758593708263,3.2078,4179.6,4179.5,1.2896]
[1758593708667,3.4764,4179.6,4179.5,1.2896]
[1758593708869,3.8837,4179.6,4179.5,1.2896]
[1758593709974,4.146,4179.6,4179.5,1.2896]
[1758593711473,4.146,4179.6,4179.5,0.243]
[1758593711666,4.146,4179.6,4178.7,3.5867]
[1758593711667,0.43034,4178.9,4178.7,3.5867]
[1758593711872,0.9382,4178.4,4178.3,0.6309]
[1758593712069,0.9382,4178.4,4178.3,0.8739]
[1758593712581,0.9382,4178.4,4178.3,0.495]
[1758593712876,0.9382,4178.4,4178.3,0.243]
[1758593713271,0.9382,4178.4,4178.3,0.8739]
[1758593714771,3.2078,4178.6,4178.3,1.1264]
[1758593714971,3.4764,4178.6,4178.5,1.0466]
[1758593715273,4.146,4178.6,4178.5,1.0466]
[1758593715868,4.146,4178.6,4178.5,0.8834]
[1758593716675,0.9382,4178.6,4178.5,0.8834]
[1758593717471,0.8806,4178.4,4178.3,0.243]
[1758593718078,0.8806,4178.4,4178.3,0.868]
[1758593719074,0.8806,4178.4,4178.3,0.4996]
[1758593719473,1.09986236,4178.4,4178.3,0.868]
[1758593720088,1.09986236,4178.4,4178.3,0.243]
[1758593720974,1.09986236,4178.4,4178.3,0.868]
[1758593721171,1.09986236,4178.4,4178.3,0.243]
[1758593722583,0.43042,4178.1,4177.9,0.02393576]
[1758593722888,1.25916236,4178.0,4177.9,0.02393576]
[1758593723591,1.25916236,4178.0,4177.9,0.28053576]
[1758593723885,1.25916236,4178.0,4177.9,0.02393576]
[1758593724592,0.8806,4177.1,4177.0,0.625]
[1758593724893,1.09986236,4177.1,4177.0,0.868]
[1758593725389,1.09986236,4177.1,4177.0,1.1363]
[1758593727287,0.48186236,4177.1,4177.0,1.286]
[1758593727582,0.21926236,4177.1,4177.0,1.286]
[1758593727983,0.69305,4177.9,4177.8,0.5249]
[1758593728185,1.28547541,4177.9,4177.8,0.8933]
[1758593728485,1.52977541,4177.9,4177.8,0.8933]
[1758593728883,0.21872541,4177.9,4177.8,0.8933]
[1758593729082,3.8245,4178.6,4177.8,1.1363]
[1758593729288,1.52971612,4178.5,4178.4,0.8933]
[1758593729483,0.21873612,4178.5,4178.4,0.8933]
[1758593730186,0.48133612,4178.5,4178.4,0.8933]
[1758593731093,0.43039,4178.4,4178.2,0.243]
[1758593731287,1.13173612,4178.3,4178.2,0.887]
[1758593732290,1.13173612,4178.3,4178.2,0.243]
[1758593732488,0.913,4178.0,4177.9,1.1528]
[1758593732795,1.13173612,4178.0,4177.9,1.1528]
[1758593733293,1.13181484,4178.0,4177.9,1.1528]
[1758593733489,1.28641484,4178.0,4177.9,0.9098]
[1758593733796,1.28641484,4178.0,4177.9,0.887]
[1758593733990,1.13181484,4178.0,4177.9,0.887]
[1758593734395,1.28641484,4178.0,4177.9,0.243]
[1758593735593,0.913,4177.3,4177.2,3.8518]
[1758593735794,1.13181484,4177.3,4177.2,3.8518]
[1758593735987,0.61321484,4177.3,4176.8,0.3897]
[1758593736188,0.913,4176.9,4176.8,1.1528]
[1758593736387,1.12758879,4176.9,4176.8,1.1528]
[1758593736983,1.12758879,4176.9,4176.8,0.9098]
[1758593737189,1.12758879,4176.9,4176.8,1.1528]
[1758593740398,1.12758879,4176.9,4176.8,0.9098]
[1758593740702,1.12758879,4176.9,4176.8,1.1528]
[1758593742197,1.9452893,4176.9,4176.4,0.3897]
[1758593742495,1.34359,4176.5,4176.4,0.644]
[1758593742700,0.43062,4176.2,4176.1,3.5975]
[1758593742895,1.55820879,4176.2,4176.1,0.2543]
[1758593744695,1.55820879,4176.2,4175.6,0.3897]
[1758593744696,1.49824,4176.0,4175.6,0.3897]
[1758593744902,0.2581,4175.3,4175.2,0.644]
[1758593745094,1.12768489,4175.3,4175.0,0.243]
[1758593745291,0.913,4175.2,4175.1,0.644]
[1758593745496,1.12754632,4175.2,4175.1,0.9098]
[1758593746400,0.913,4175.2,4175.1,0.9098]
[1758593747996,0.3944,4175.5,4175.2,0.3897]
[1758593748202,3.63843,4176.1,4176.0,0.1534]
[1758593748501,4.11078636,4176.1,4176.0,1.0632]
[1758593748692,4.76568636,4176.1,4176.0,1.0632]
[1758593749099,4.33505636,4176.1,4176.0,1.0632]
[1758593750001,3.94065636,4176.1,4176.0,1.0632]
[1758593750396,3.68015636,4176.1,4176.0,1.0632]
[1758593751202,3.42205636,4176.1,4176.0,1.0632]
[1758593752192,0.47235636,4176.1,4176.0,1.0632]
[1758593752802,1.12725636,4176.1,4176.0,0.4973]
[1758593753002,1.12725636,4176.1,4176.0,0.887]
[1758593753301,1.12725636,4176.1,4176.0,1.1528]
[1758593753505,1.12725636,4176.1,4176.0,1.3062]
[1758593753700,0.67357,4176.7,4176.0,1.3062]
[1758593753701,0.3944,4176.4,4176.3,0.2543]
[1758593753905,0.86678113,4176.4,4176.3,0.9098]
[1758593754103,0.21428113,4176.4,4176.3,0.9098]
[1758593754303,0.3944,4177.3,4176.3,1.81874051]
[1758593754508,1.34351,4177.3,4177.2,0.2543]
[1758593754699,1.55783455,4177.3,4177.2,0.2543]
[1758593754898,1.55783455,4177.3,4177.0,0.3897]
[1758593754899,0.2581,4177.1,4177.0,0.3897]
[1758593755200,0.913,4176.7,4176.6,3.2078]
[1758593755398,1.12732455,4176.7,4176.6,3.8518]
[1758593755796,0.21432455,4176.7,4176.6,5.45390051]
[1758593756002,1.34353,4177.1,4177.0,0.9098]
[1758593756307,1.55784168,4177.1,4177.0,0.9098]
[1758593757105,0.43056,4176.9,4176.8,0.2543]
[1758593757406,1.55787168,4176.9,4176.8,0.2543]
[1758593757611,0.913,4176.7,4176.6,3.4621]
[1758593757902,1.12731168,4176.7,4176.6,3.4621]
[1758593758108,1.12731168,4176.7,4176.6,3.2078]
[1758593758303,0.43062,4176.2,4176.1,0.2543]
[1758593758500,1.55793168,4176.2,4176.1,0.2543]
[1758593759012,0.4307,4175.4,4175.3,3.5975]
[1758593759202,1.3437,4175.4,4175.3,4.0948]
[1758593759398,1.55804327,4175.4,4175.3,4.3606]
[1758593759709,1.12734327,4175.4,4175.3,3.8518]
[1758593759900,1.12734327,4175.4,4175.3,4.1176]
[1758593760498,1.12734327,4175.4,4175.3,0.9098]
[1758593761102,1.12734327,4175.4,4175.3,0.644]
[1758593761510,1.12734327,4175.4,4175.3,0.8919]
[1758593762606,0.21434327,4175.4,4175.3,1.3744]
[1758593762803,0.68852,4176.2,4176.1,0.8789]
[1758593763404,1.32032,4176.2,4176.1,0.8789]
[1758593764711,0.95602,4176.2,4176.1,0.8789]
[1758593765812,1.32032,4176.2,4176.1,0.8789]
[1758593766409,0.8897,4176.2,4176.1,0.8789]
[1758593767713,0.43059,4176.5,4176.1,1.83650051]